Cogmind - Beta 9.4 @@@ ROGUE MODE // 2020.02.13 @ 15:40:36 Player: Finestep Result: Destroyed self with Rocket Launcher Performance ------------- Evolutions (0) 0 Regions Visited (2) 400 Robots Destroyed (33) 165 Value Destroyed (389) 389 Prototype IDs (2) 40 Alien Tech Used (0) 0 Bonus (-7) -7 TOTAL SCORE: 987 Bonus ------- Friendly Fire -7 Cogmind --------- Core Integrity 0/250 Matter 251/300 Energy 125/125 System Corruption 9% Temperature Cool (24) Movement Core (1200) Ox23 Location -10/Mines Parts ------- > --- POWER (1) -------- Light Ion Engine > --- PROPULSION (2) --- (None) > --- UTILITY (2) ------ High-capacity Storage Unit High-capacity Storage Unit > --- WEAPON (2) ------- Rocket Launcher > --- INVENTORY (20) --- Light Treads Light Treads Wheel Armored Wheel Armored Wheel Armored Wheel Armored Wheel Large Storage Unit Large Storage Unit High-capacity Storage Unit Propulsion Shielding Hacking Suite Assault Rifle Light Assault Rifle Light Assault Rifle Rocket Launcher Datajack Mining Laser Peak State ------------ > --- POWER ------------ Light Ion Engine > --- PROPULSION ------- Wheel Compact Wheel > --- UTILITY ---------- High-capacity Storage Unit High-capacity Storage Unit > --- WEAPON ----------- Light Assault Rifle Rocket Launcher > --- INVENTORY -------- Light Treads Light Treads Wheel Armored Wheel Armored Wheel Armored Wheel Armored Wheel Large Storage Unit Large Storage Unit High-capacity Storage Unit Propulsion Shielding Hacking Suite Assault Rifle Light Assault Rifle Light Assault Rifle Rocket Launcher Datajack Mining Laser [Rating: 10] Favorites ----------- Power Light Ion Engine Engine Light Ion Engine Propulsion Compact Wheel Wheel Compact Wheel Utility Large Storage Unit Storage Large Storage Unit Weapon Light Assault Rifle Energy Gun Medium Laser Ballistic Gun Light Assault Rifle Launcher Rocket Launcher Special Weapon Mining Laser Build | -11 -10 -10 ------- Run | Scr Mat Min Slots Evolved . | . . . Power . | . . . Propulsion . | . . . Utility . | . . . Weapon . | . . . Parts Attached 22 | 6 14 2 Power 3 | 1 1 1 Engine 3 | 1 1 1 Core . | . . . Reactor . | . . . Propulsion 5 | 2 3 . Treads . | . . . Leg . | . . . Wheel 5 | 2 3 . Hover . | . . . Flight . | . . . Utility 7 | 1 6 . Device . | . . . Storage 7 | 1 6 . Processor . | . . . Hackware . | . . . Protection . | . . . Artifact . | . . . Weapon 7 | 2 4 1 Energy Gun 1 | 1 . . Energy Cannon . | . . . Ballistic Gun 4 | 1 3 . Ballistic Cannon . | . . . Launcher 1 | . . 1 Special Weapon 1 | . 1 . Impact Weapon . | . . . Slashing Weapon . | . . . Piercing Weapon . | . . . Special Melee Weapon . | . . . Unidentified Prototypes . | . . . Parts Lost 5 | . 1 4 Power 2 | . 1 1 Propulsion 2 | . . 2 Utility . | . . . Weapon 1 | . . 1 Highest Loss Streak 4 | . 1 4 Average Slot Usage (%) 98 | . 98 91 Engine 13 | . 13 12 Wheel 27 | . 28 24 Storage 27 | . 27 28 Energy Gun 2 | . 2 . Ballistic Gun 25 | . 25 24 Naked Turns . | . . . Heaviest Build 72 | 11 71 72 Greatest Support 28 | 26 28 26 Greatest Overweight (x) 2 | . 2 2 Average Overweight (x) 1 | . 1 2 Largest Inventory Capacity 20 | 6 20 20 Average Capacity 15 | 5 16 20 Most Carried 19 | 6 19 19 Average Carried 14 | 2 14 18 Final Capacity 20 | 6 20 20 Final Carried 19 | 6 19 18 Class Distribution -------------------- 60% | Mutant 26% | Scavenger-Mutant 12% | Hauler-Mutant Dominant Class ---------------- Mutant | -10/Materials Hauler-Mutant | -10/Mines Resources | -11 -10 -10 ----------- Run | Scr Mat Min Matter Collected 601 | 266 308 27 Remotely . | . . . Salvage Created 896 | 97 709 90 Parts 51 | 6 43 2 Haulers Intercepted 2 | . 2 . Recyclers Shooed 1 | . 1 . Parts Field Recycled . | . . . Retrieved Matter . | . . . Parts Self-Destructed . | . . . Prevented . | . . . Kills | -11 -10 -10 ------- Run | Scr Mat Min Combat Hostiles Destroyed 21 | . 12 9 Guns 14 | . 12 2 AOE 7 | . . 7 Classes Destroyed 9 | 2 6 1 Worker 1 | . 1 . Tunneler 3 | 1 2 . Hauler 2 | . 2 . Recycler 3 | 1 2 . Operator 2 | . 2 . Watcher 1 | . 1 . Swarmer 8 | . 8 . Grunt 6 | . 4 2 Assembled 7 | . . 7 Best Kill Streak 7 | 2 4 7 Combat Bots Only 7 | . 3 7 Max Kills in Single Turn 5 | 1 1 5 Gunslinging . | . . . Exploded 5 | . . 5 Melee . | . . . Uniques/NPCs Destroyed . | . . . Combat | -11 -10 -10 -------- Run | Scr Mat Min Damage Taken 820 | . 338 482 Core 261 | . 67 194 Absorbed by Shields . | . . . Core Remaining (%) 100 | 100 . . Volleys Fired 99 | 2 85 12 Largest 2 | 2 2 2 Hottest 100 | 70 100 40 Shots Fired 191 | 4 167 20 Gun 184 | 4 164 16 Cannon . | . . . Launcher 4 | . . 4 Special 3 | . 3 . Kinetic 165 | 2 147 16 Thermal 22 | 2 20 . Explosive 4 | . . 4 Electromagnetic . | . . . Robot Hit Streak 10 | 3 10 5 Robot Miss Streak 4 | . 4 1 Penetration Max . | . . . Secondary Targets . | . . . Shots Hit Robots 117 | 3 99 15 Core Hits 64 | 3 40 21 Critical Hits 3 | . 3 . Critical Kills . | . . . Critical Parts Destroyed 3 | . 3 . Melee Attacks . | . . . Impact . | . . . Slashing . | . . . Piercing . | . . . Sneak Attacks . | . . . Combat Hostiles . | . . . Follow-up Attacks . | . . . Damage Inflicted 1700 | 36 863 801 Guns 995 | 36 863 96 Cannons . | . . . Explosions 705 | . . 705 Melee . | . . . Ramming . | . . . Kinetic 808 | 11 701 96 Thermal 187 | 25 162 . Explosive 705 | . . 705 Electromagnetic . | . . . Impact . | . . . Slashing . | . . . Piercing . | . . . Highest Corruption 9 | . . 9 Average Corruption 9 | . . 9 Corruption Purged . | . . . Overload Shots . | . . . Overflow Damage 10 | . . 10 Projectiles . | . . . Explosions 10 | . . 10 Melee . | . . . Knockbacks . | . . . Impact . | . . . Kinetic . | . . . Secondary . | . . . Self-Inflicted Damage 68 | . . 68 Shots 3 | . . 3 Rammed . | . . . Targets Rammed . | . . . Kicked . | . . . Crushed . | . . . Highest Temperature 99 | 18 99 32 Average Temperature 26 | 10 31 12 Received Heat Transfer 195 | . 60 135 Siege Activations . | . . . Robots Corrupted . | . . . Combat Hostiles . | . . . Parts Fried . | . . . Impact Corruptions . | . . . Robots Melted . | . . . Combat Hostiles . | . . . Parts Melted 2 | . 2 . Heat Transferred 555 | 74 481 . Parts Sabotaged . | . . . Parts Stolen . | . . . Parts Stripped . | . . . Power Chain Reactions . | . . . Missiles Intercepted . | . . . Alert | -11 -10 -10 ------- Run | Scr Mat Min Peak Influence 241 | 10 241 118 Average Influence 114 | 5 121 101 Maximum Alert Level 1 | . 1 . Low Security (%) 91 | 100 90 100 Level 1 8 | . 9 . Level 2 . | . . . Level 3 . | . . . Level 4 . | . . . Level 5 . | . . . High Security . | . . . Max Security . | . . . Squads Dispatched 4 | . 4 . Investigation 2 | . 2 . Extermination . | . . . Reinforcement 2 | . 2 . Assault . | . . . Garrison . | . . . Intercept . | . . . Construction Impeded . | . . . Haulers Reinforced . | . . . Stealth | -11 -10 -10 --------- Run | Scr Mat Min Distress Signals . | . . . Communications Jammed . | . . . Distress Signals . | . . . Times Spotted 43 | . 25 18 Peak Tracking Total 16 | . 5 16 Tactical Retreats 1 | . 1 . Traps | -11 -10 -10 ------- Run | Scr Mat Min Traps Triggered . | . . . Indirectly . | . . . Trap Hack Attempts . | . . . Triggered . | . . . Disarmed . | . . . Reprogrammed . | . . . Reused . | . . . Traps Extracted . | . . . Installed . | . . . Triggered . | . . . Machines | -11 -10 -10 ---------- Run | Scr Mat Min Machines Disabled . | . . . Max in Single Turn . | . . . Machines Sabotaged . | . . . Garrisons Compromised . | . . . Overloaded Fab Kills . | . . . Fab Network Shutdowns . | . . . Hacking | -11 -10 -10 --------- Run | Scr Mat Min Machines Accessed 8 | . 8 . Terminals 6 | . 6 . Fabricators . | . . . Repair Stations . | . . . Recycling Units 2 | . 2 . Scanalyzers . | . . . Garrison Access . | . . . Total Hacks 29 | . 29 . Successful 16 | . 16 . Failed 13 | . 13 . Catastrophic . | . . . Database Lockouts . | . . . Manual 17 | . 17 . Terminals 25 | . 25 . Fabricators . | . . . Repair Stations . | . . . Recycling Units 4 | . 4 . Scanalyzers . | . . . Garrison Access . | . . . Terminal Hacks 7 | . 7 . Prototype ID Bank 1 | . 1 . Branch Access Points 1 | . 1 . Terminal Index 1 | . 1 . Recycling Unit Index 1 | . 1 . Locate Traps 1 | . 1 . Zone Layout 2 | . 2 . Fabricator Hacks . | . . . Repair Station Hacks . | . . . Recycling Unit Hacks 2 | . 2 . Retrieve Components 2 | . 2 . Scanalyzer . | . . . Garrison Access Hacks . | . . . Unauthorized Hacks 16 | . 16 . Terminals 5 | . 5 . Track 1 | . 1 . Assimilate 2 | . 2 . Botnet 1 | . 1 . Operators 1 | . 1 . Fabricators . | . . . Repair Stations . | . . . Recycling Units 2 | . 2 . Tunnel 2 | . 2 . Scanalyzers . | . . . Garrison Access . | . . . Data Cores Recovered . | . . . Used . | . . . Hacking Detections 7 | . 7 . Full Trace Events . | . . . Feedback Events . | . . . Feedback Blocked . | . . . Robot Schematics Acquired . | . . . Robots Built . | . . . Matter . | . . . Time . | . . . Total Robot Build Rating . | . . . Part Schematics Acquired . | . . . Parts Built . | . . . Matter . | . . . Time . | . . . Total Part Build Rating . | . . . Parts Repaired . | . . . Time . | . . . Parts Recycled . | . . . Recycled Matter . | . . . Retrieved Matter . | . . . Retrieved Components 20 | . 20 . Parts Scanalyzed . | . . . Part Schematics Acquired . | . . . Parts Damaged . | . . . Bothacking | -11 -10 -10 ------------ Run | Scr Mat Min Used RIF Installer . | . . . Robots Hacked . | . . . Non-combat . | . . . Combat . | . . . Robot Hacks Applied . | . . . Relay Couplers Released . | . . . Robots Rewired . | . . . Allies Hacked . | . . . Hacks Repelled . | . . . Allies | -11 -10 -10 -------- Run | Scr Mat Min Total Allies 1 | . 1 . Largest Group 1 | . 1 1 Highest-Rated Group 10 | . 10 10 Highest-Rated Ally 10 | . 10 10 Total Orders 6 | . 6 . GOTO 3 | . 3 . FOLLOW 3 | . 3 . Ally Attacks . | . . . Total Damage . | . . . Kills . | . . . Allies Corrupted . | . . . Allies Melted . | . . . Intel | -11 -10 -10 ------- Run | Scr Mat Min Robot Analysis Total . | . . . Derelict Logs Recovered . | . . . Drone Launches . | . . . Drone Recoveries . | . . . Exploration | -11 -10 -10 ------------- Run | Scr Mat Min Turns Passed 1189 | 55 1072 62 Spaces Moved 808 | 41 738 29 Core 7 | 7 . . Treads . | . . . Legs . | . . . Wheels 801 | 34 738 29 Hover . | . . . Flight . | . . . Fastest Speed 50 | 50 90 110 Average Speed 103 | 82 104 110 Slowest Speed 110 | 90 110 110 Overloaded Moves . | . . . Propulsion Burnouts . | . . . Robots Hopped . | . . . Cave-ins Triggered . | . . . Exploration Rate (%) 35 | 3 93 10 Regions Visited 2 Branch Regions 1 Pre-discovered Areas 2 | . 2 . Known Exits Taken 1 | . 1 . Unknown Exits Taken 1 | 1 . . Scrap Searched . | . . . Spaces Dug 2 | . 2 . Terrain Destroyed 41 | . 2 39 Melee . | . . . Projectile 2 | . 2 . AOE 39 | . . 39 Actions | -11 -10 -10 --------- Run | Scr Mat Min Total 991 | 54 894 43 Wait 36 | . 36 . Move 806 | 40 737 29 Hop . | . . . Pick Up 18 | 6 12 . Fast Attach 10 | 6 4 . Attach 1 | . . 1 Detach 1 | . 1 . Swap 11 | . 10 1 Drop 9 | . 9 . Fire 99 | 2 85 12 Melee . | . . . Ram . | . . . Kick . | . . . Crush . | . . . Escape Stasis . | . . . Rewire . | . . . Trap . | . . . Miscellaneous . | . . . Route ------- -11/Scrapyard -10/Materials (discovered 5 exits: [*Mat x3] / *Min x2) -10/Mines History --------- Turn | Location | Event 18 | -11/Scrapyard | Discovered new exit (range 16) 56 | -11/Scrapyard | Entered Materials 73 | -10/Materials | Discovered new exit (range 15) 189 | -10/Materials | Discovered new exit (range 11) 263 | -10/Materials | Discovered new exit (range 16) 324 | -10/Materials | Build established: Mutant 542 | -10/Materials | Discovered new exit (range 13) 551 | -10/Materials | Identified exit to Mines 1017 | -10/Materials | Build established: Scavenger-Mutant 1054 | -10/Materials | Discovered new exit (range 16) 1128 | -10/Materials | Entered Mines 1128 | -10/Mines | Accompanied by 1 ally 1173 | -10/Mines | Assembled infested the area 1184 | -10/Mines | Core integrity fell below 50% 1190 | -10/Mines | Core integrity fell below 20% 1190 | -10/Mines | Destroyed self with Rocket Launcher Last Messages --------------- 01148_ G-47 Trooper destroyed. 01153_ Acquired 27 matter. 01173_ ALERT: Infestation in the mines, dispatching Demolisher response squad. 01177_ Ion Engine destroyed. 01183_ as-87264 destroyed. 01187_ Lgt. Assault Rifle destroyed. 01188_ as-94863 destroyed. 01188_ as-04082 destroyed. 01189_ The unstable cave ceiling collapses. 01189_ Com. Wheel destroyed. 01189_ Wheel destroyed. 01189_ System corrupted by crushing effect (+5). 01189_ System corrupted by crushing effect (+4). 01190_ as-32521 destroyed. 01190_ as-81007 destroyed. 01190_ as-67395 destroyed. 01190_ as-06188 destroyed. 01190_ Destroyed Asb. Hover Unit. 01190_ as-30719 destroyed. Map ----- +----------------------------------------------------+ | ?????????????????????????????????????????????????? | | ?????????????????????????????????????????????????? | | ?????????????????????????????????????????????????? | | ?????????????????????????????????????????????????? | | ?????????????????????????????????????????????????? | | ???????????????????????????# ???????????????????? | | ??????????????????????????# ????????????????? | | ?????????????????????????? ????????????????? | | ?????????????????????????? ?????????????????? | | ?????????????????????????? ?????????????????? | | ?????????????????????????? ??????????????????? | | ?????????????????????????? ??????????????????? | | ??????????????????????#### ???????????????????? | | ??????????????????????# #???????????????????? | | ?????????????????????## aaa ????????????????????? | | ?????????????????????# % a#????????????????????? | | ?????????????????????# a##???????????????????? | | ?????????????????????# #???????????????????? | | ?????????????????????# ##??????????????????? | | ?????????????????????# ???????????????????? | | ?????????????????????# #???????????????????? | | ?????????????????????# a ##??????????????????? | | ??????????????????????# % #??????????????????? | | ???????????????????????# a ???????????????????? | | ???????????????????????# a #????????????????????? | | ?????????############???#@ ##????????????????????? | | ?????????# #???# #?????????????????????? | | ?????????# = #???# #?????????????????????? | | ?????????# %= #???# #?????????????????????? | | ?????????# """ % #???# #?????????????????????? | | ?????????# """ ##### #?????????????????????? | | ?????????# """ #?????????????????????? | | ?????????# ########?????????????????????? | | ?????????# """ " " #????????????????????????????? | | ?????????# """ """ #????????????????????????????? | | ?????????# """ """ #????????????????????????????? | | ?????????# #????????????????????????????? | | ?????????############????????????????????????????? | | ?????????????????????????????????????????????????? | | ?????????????????????????????????????????????????? | | ?????????????????????????????????????????????????? | | ?????????????????????????????????????????????????? | | ?????????????????????????????????????????????????? | | ?????????????????????????????????????????????????? | | ?????????????????????????????????????????????????? | | ?????????????????????????????????????????????????? | | ?????????????????????????????????????????????????? | | ?????????????????????????????????????????????????? | | ?????????????????????????????????????????????????? | | ?????????????????????????????????????????????????? | +----------------------------------------------------+ Best States ------------- Heat Dissipation 25 Energy Generation 10 Energy Capacity 250 Matter Stores 300 Matter Capacity 300 Sight Range 16 Terrain Scan Density 10 Evasion (%) 44 Item Schematics ----------------- None Robot Schematics ------------------ None Fabricated ------------ Nothing Alien Tech Used ----------------- None Achievements -------------- None Challenges ------------ None Game ------ Seed LinkedHeavySystem Manual? 0 Play Time 00:10:32 Cumulative 319.7 hours Start 2020.02.13 @ 15:25:06 End 2020.02.13 @ 15:40:36 Sessions 1 Manual Loads 0 Difficulty Rogue Special Mode None Game No. 237 Rogue 237 Adventurer 0 Explorer 0 Win Type - Total 3 Types 3/0/0/0/0/0/0 Lore% 74 Gallery% 82 Achievement% 60 Wizard Run 0 Options --------- ASCII 0 Keyboard 0 Movement Mouse Keybinds 1 Fullscreen 2 Font 24/Smallcaps Map View 76x50 Tactical HUD 1 Map Filters NONE Filters NONE Steam 1 RUN: c349a680-cb1b-45e5-ba71-150744aeeb6b